[Event "*** SCC Grand Prix: Titled Tuesday Blitz"]
[Site "Chess.com"]
[Date "2020.06.09"]
[Round "9"]
[White "WiktoriaPOL"]
[Black "PetrolulSah"]
[Result "1-0"]
[WhiteElo "2057"]
[BlackElo "2231"]
[TimeControl "180+1"]
[EndTime "10:47:35 PDT"]
[Termination "WiktoriaPOL won by checkmate"]

1. c4 {[%clk 0:03:00.9]} 1... Nf6 {[%clk 0:02:50]} 2. Nc3 {[%clk 0:03:00.2]}
2... c6 {[%clk 0:02:47.8]} 3. e4 {[%clk 0:02:58.2]} 3... e5 {[%clk 0:02:47.4]}
4. d4 {[%clk 0:02:55.9]} 4... Bb4 {[%clk 0:02:38.8]} 5. dxe5 {[%clk 0:02:42.9]}
5... Nxe4 {[%clk 0:02:35.9]} 6. Qf3 {[%clk 0:02:42.1]} 6... Qa5 {[%clk
0:02:23.2]} 7. Ne2 {[%clk 0:02:27.3]} 7... d5 {[%clk 0:02:08.6]} 8. exd6 {[%clk
0:02:23.8]} 8... Nxd6 {[%clk 0:02:06]} 9. a3 {[%clk 0:02:17.7]} 9... O-O {[%clk
0:02:03.1]} 10. Rb1 {[%clk 0:01:58.5]} 10... Bxc3+ {[%clk 0:01:44.7]} 11. Qxc3
{[%clk 0:01:57.2]} 11... Qf5 {[%clk 0:01:37.8]} 12. Ra1 {[%clk 0:01:42.1]} 12...
Re8 {[%clk 0:01:34.5]} 13. Be3 {[%clk 0:01:39.7]} 13... Ne4 {[%clk 0:01:28.4]}
14. Qc2 {[%clk 0:01:26.7]} 14... c5 {[%clk 0:01:19.1]} 15. Rd1 {[%clk
0:00:33.5]} 15... Nc6 {[%clk 0:01:10.5]} 16. Rd5 {[%clk 0:00:32.1]} 16... Qg6
{[%clk 0:01:08]} 17. g3 {[%clk 0:00:30.3]} 17... Ng5 {[%clk 0:00:36]} 18. Qxg6
{[%clk 0:00:22.4]} 18... Nf3+ {[%clk 0:00:35.4]} 19. Kd1 {[%clk 0:00:22.2]}
19... hxg6 {[%clk 0:00:35.4]} 20. Bg2 {[%clk 0:00:21.7]} 20... Nce5 {[%clk
0:00:33.7]} 21. Bxf3 {[%clk 0:00:19.9]} 21... Nxf3 {[%clk 0:00:33.2]} 22. Rxc5
{[%clk 0:00:19.9]} 22... Bg4 {[%clk 0:00:32]} 23. Kc2 {[%clk 0:00:18.1]} 23...
Ne5 {[%clk 0:00:27.3]} 24. Nf4 {[%clk 0:00:15.7]} 24... Bf3 {[%clk 0:00:23.7]}
25. Rc1 {[%clk 0:00:10]} 25... b6 {[%clk 0:00:23.5]} 26. Rc7 {[%clk 0:00:08.7]}
26... Be4+ {[%clk 0:00:23.5]} 27. Kb3 {[%clk 0:00:06.9]} 27... g5 {[%clk
0:00:22.9]} 28. Nd5 {[%clk 0:00:07]} 28... Nd3 {[%clk 0:00:21.3]} 29. Rd1 {[%clk
0:00:05.6]} 29... a5 {[%clk 0:00:20.1]} 30. Re7 {[%clk 0:00:05.2]} 30... a4+
{[%clk 0:00:19.4]} 31. Ka2 {[%clk 0:00:05.4]} 31... Red8 {[%clk 0:00:18.8]} 32.
Rxe4 {[%clk 0:00:04.6]} 32... Nc5 {[%clk 0:00:15.7]} 33. Nc3 {[%clk 0:00:04.2]}
33... Nxe4 {[%clk 0:00:14.7]} 34. Rxd8+ {[%clk 0:00:03.4]} 34... Rxd8 {[%clk
0:00:13.9]} 35. Nxe4 {[%clk 0:00:03.8]} 35... f6 {[%clk 0:00:13.9]} 36. Bxb6
{[%clk 0:00:03.7]} 36... Re8 {[%clk 0:00:14.1]} 37. Nc3 {[%clk 0:00:02.9]} 37...
Kf7 {[%clk 0:00:13.3]} 38. c5 {[%clk 0:00:03.2]} 38... Ke6 {[%clk 0:00:13.4]}
39. c6 {[%clk 0:00:03.6]} 39... Rc8 {[%clk 0:00:12.8]} 40. c7 {[%clk 0:00:03.9]}
40... Kd6 {[%clk 0:00:12.9]} 41. b4 {[%clk 0:00:03.9]} 41... Kc6 {[%clk
0:00:12.9]} 42. Ba5 {[%clk 0:00:03.4]} 42... f5 {[%clk 0:00:11.3]} 43. Nxa4
{[%clk 0:00:03.5]} 43... f4 {[%clk 0:00:10]} 44. Nc3 {[%clk 0:00:02.3]} 44... f3
{[%clk 0:00:09.1]} 45. b5+ {[%clk 0:00:02.1]} 45... Kb7 {[%clk 0:00:08.4]} 46.
b6 {[%clk 0:00:02.4]} 46... g4 {[%clk 0:00:08.5]} 47. Ne4 {[%clk 0:00:02.4]}
47... Ra8 {[%clk 0:00:08.5]} 48. Nd6+ {[%clk 0:00:02.4]} 48... Kc6 {[%clk
0:00:07.1]} 49. c8=Q+ {[%clk 0:00:02.6]} 49... Rxc8 {[%clk 0:00:06.9]} 50. Nxc8
{[%clk 0:00:03.5]} 50... Kd7 {[%clk 0:00:05.2]} 51. b7 {[%clk 0:00:03.5]} 51...
Kc6 {[%clk 0:00:04]} 52. b8=Q {[%clk 0:00:03.8]} 52... Kd7 {[%clk 0:00:04.2]}
53. Qb7+ {[%clk 0:00:03.9]} 53... Ke6 {[%clk 0:00:05]} 54. Qc7 {[%clk
0:00:04.1]} 54... Kd5 {[%clk 0:00:05]} 55. Qd6+ {[%clk 0:00:04.3]} 55... Kc4
{[%clk 0:00:04.9]} 56. Nb6+ {[%clk 0:00:04]} 56... Kb5 {[%clk 0:00:04.7]} 57.
Qd5+ {[%clk 0:00:03.9]} 57... Ka6 {[%clk 0:00:04.5]} 58. Qc4+ {[%clk 0:00:04.2]}
58... Kb7 {[%clk 0:00:04.1]} 59. Nd5 {[%clk 0:00:04.3]} 59... Ka7 {[%clk
0:00:04.1]} 60. Qc7+ {[%clk 0:00:04.4]} 60... Ka6 {[%clk 0:00:03.7]} 61. Qb6#
{[%clk 0:00:04.7]} 1-0

[Event "*** SCC Grand Prix: Titled Tuesday Blitz"]
[Site "Chess.com"]
[Date "2020.06.09"]
[Round "9"]
[White "manmanlai1"]
[Black "goldenpuppy"]
[Result "1-0"]
[WhiteElo "2390"]
[BlackElo "2220"]
[TimeControl "180+1"]
[EndTime "10:47:39 PDT"]
[Termination "manmanlai1 won by resignation"]

1. e4 {[%clk 0:03:00.9]} 1... c5 {[%clk 0:02:56.9]} 2. Nf3 {[%clk 0:03:00.3]}
2... d6 {[%clk 0:02:52.8]} 3. Bb5+ {[%clk 0:02:52.6]} 3... Nd7 {[%clk
0:02:52.3]} 4. d4 {[%clk 0:02:50.6]} 4... cxd4 {[%clk 0:02:53.2]} 5. Qxd4 {[%clk
0:02:51]} 5... a6 {[%clk 0:02:52.7]} 6. Bxd7+ {[%clk 0:02:51.6]} 6... Bxd7
{[%clk 0:02:53.2]} 7. O-O {[%clk 0:02:51.6]} 7... e5 {[%clk 0:02:53]} 8. Qd3
{[%clk 0:02:51.3]} 8... Rc8 {[%clk 0:02:50.8]} 9. c4 {[%clk 0:02:51]} 9... Be6
{[%clk 0:02:50.7]} 10. b3 {[%clk 0:02:49.4]} 10... Be7 {[%clk 0:02:50.7]} 11.
Nc3 {[%clk 0:02:49.2]} 11... h6 {[%clk 0:02:50.5]} 12. a4 {[%clk 0:02:45.8]}
12... Nf6 {[%clk 0:02:50.5]} 13. Rd1 {[%clk 0:02:41.3]} 13... O-O {[%clk
0:02:50.3]} 14. Nd2 {[%clk 0:02:36.8]} 14... Qc7 {[%clk 0:02:48.5]} 15. Nf1
{[%clk 0:02:35.4]} 15... Rfd8 {[%clk 0:02:43.1]} 16. Ne3 {[%clk 0:02:33.6]}
16... Qb8 {[%clk 0:02:43.6]} 17. Ba3 {[%clk 0:02:22.1]} 17... Bf8 {[%clk
0:02:42.8]} 18. Rd2 {[%clk 0:02:17.8]} 18... Rc6 {[%clk 0:02:36.6]} 19. f3
{[%clk 0:02:16.8]} 19... Nd7 {[%clk 0:02:32.8]} 20. Ned5 {[%clk 0:02:13.3]}
20... Bxd5 {[%clk 0:02:31.6]} 21. Qxd5 {[%clk 0:02:10.3]} 21... Nf6 {[%clk
0:02:24.6]} 22. Qd3 {[%clk 0:02:09.1]} 22... Qa7+ {[%clk 0:02:24.1]} 23. Kh1
{[%clk 0:02:08]} 23... Kh7 {[%clk 0:02:22.5]} 24. Rdd1 {[%clk 0:02:07.2]} 24...
b6 {[%clk 0:02:14]} 25. Bc1 {[%clk 0:02:02.1]} 25... g5 {[%clk 0:02:11.1]} 26.
Be3 {[%clk 0:02:00.4]} 26... Qb7 {[%clk 0:02:07.6]} 27. Rd2 {[%clk 0:01:52.4]}
27... Nh5 {[%clk 0:02:06.7]} 28. Nd5 {[%clk 0:01:49.8]} 28... Nf4 {[%clk
0:02:01.7]} 29. Bxf4 {[%clk 0:01:44.2]} 29... gxf4 {[%clk 0:02:02.6]} 30. h3
{[%clk 0:01:24]} 30... Be7 {[%clk 0:01:59.8]} 31. Qe2 {[%clk 0:01:15]} 31... Rg8
{[%clk 0:01:39]} 32. Rad1 {[%clk 0:01:12.3]} 32... Qd7 {[%clk 0:01:36.2]} 33.
Nb4 {[%clk 0:01:07.6]} 33... Rcc8 {[%clk 0:01:33.5]} 34. Nxa6 {[%clk 0:01:07.2]}
34... Rg6 {[%clk 0:01:32.2]} 35. Nb4 {[%clk 0:01:04.7]} 35... Rcg8 {[%clk
0:01:31.1]} 36. Nd5 {[%clk 0:01:04.2]} 36... Bd8 {[%clk 0:01:30.4]} 37. Qf1
{[%clk 0:00:56.7]} 37... Rg3 {[%clk 0:01:29.5]} 38. Rf2 {[%clk 0:00:56.3]} 38...
Bh4 {[%clk 0:01:27.9]} 39. Rdd2 {[%clk 0:00:54.1]} 39... Qb7 {[%clk 0:01:22.2]}
40. Ra2 {[%clk 0:00:53.2]} 40... R3g6 {[%clk 0:01:20.5]} 41. Rfc2 {[%clk
0:00:49.5]} 41... Bd8 {[%clk 0:01:18.2]} 42. b4 {[%clk 0:00:49.1]} 42... Rg3
{[%clk 0:01:09.4]} 43. Qg1 {[%clk 0:00:48.4]} 43... Qd7 {[%clk 0:01:06.4]} 44.
Qf1 {[%clk 0:00:47.2]} 44... f5 {[%clk 0:00:57.4]} 45. exf5 {[%clk 0:00:45.6]}
45... Qxf5 {[%clk 0:00:58.3]} 46. a5 {[%clk 0:00:43.2]} 46... bxa5 {[%clk
0:00:56.9]} 47. bxa5 {[%clk 0:00:42.6]} 47... Bxa5 {[%clk 0:00:52.8]} 48. Ne7
{[%clk 0:00:38.6]} 48... Qf7 {[%clk 0:00:18.7]} 49. Nxg8 {[%clk 0:00:38]} 49...
Bc7 {[%clk 0:00:17.9]} 50. Ra7 {[%clk 0:00:35.3]} 50... Rxg8 {[%clk 0:00:17]}
51. c5 {[%clk 0:00:32.2]} 51... d5 {[%clk 0:00:17.3]} 52. Rb2 {[%clk 0:00:31.9]}
52... Kh8 {[%clk 0:00:16.2]} 53. Rbb7 {[%clk 0:00:30.4]} 53... Rc8 {[%clk
0:00:16.8]} 54. Qb5 {[%clk 0:00:28.9]} 54... Qg6 {[%clk 0:00:15.7]} 55. Qd7
{[%clk 0:00:27.1]} 55... Rg8 {[%clk 0:00:15.1]} 56. Ra2 {[%clk 0:00:21.9]} 56...
Bd8 {[%clk 0:00:09.6]} 57. Qxd5 {[%clk 0:00:20.5]} 57... Bh4 {[%clk 0:00:08.7]}
58. Qxe5+ {[%clk 0:00:19.6]} 58... Bf6 {[%clk 0:00:08.8]} 59. Qe4 {[%clk
0:00:18.1]} 59... Qxe4 {[%clk 0:00:05.8]} 60. fxe4 {[%clk 0:00:19]} 60... Rd8
{[%clk 0:00:06.6]} 61. Kg1 {[%clk 0:00:17.9]} 61... Bh4 {[%clk 0:00:06]} 62. Kf1
{[%clk 0:00:17.6]} 62... Rd1+ {[%clk 0:00:06.2]} 63. Ke2 {[%clk 0:00:18]} 63...
Re1+ {[%clk 0:00:06.9]} 64. Kf3 {[%clk 0:00:18.2]} 64... Re3+ {[%clk 0:00:06]}
65. Kxf4 {[%clk 0:00:17.9]} 65... Rg3 {[%clk 0:00:05.7]} 66. Ra8+ {[%clk
0:00:17]} 66... Rg8 {[%clk 0:00:05.7]} 67. Rxg8+ {[%clk 0:00:17.4]} 67... Kxg8
{[%clk 0:00:06.6]} 68. c6 {[%clk 0:00:18]} 1-0

[Event "*** SCC Grand Prix: Titled Tuesday Blitz"]
[Site "Chess.com"]
[Date "2020.06.09"]
[Round "9"]
[White "Nbk90"]
[Black "Lagmantr"]
[Result "0-1"]
[WhiteElo "2553"]
[BlackElo "2721"]
[TimeControl "180+1"]
[EndTime "10:47:42 PDT"]
[Termination "Lagmantr won by resignation"]

1. Nf3 {[%clk 0:03:00.9]} 1... d5 {[%clk 0:02:59.7]} 2. g3 {[%clk 0:02:56.8]}
2... Nf6 {[%clk 0:02:58.9]} 3. Bg2 {[%clk 0:02:56.9]} 3... Bg4 {[%clk
0:02:59.5]} 4. O-O {[%clk 0:02:57.2]} 4... Nbd7 {[%clk 0:03:00]} 5. d4 {[%clk
0:02:54.9]} 5... e6 {[%clk 0:02:59.3]} 6. Nbd2 {[%clk 0:02:55.3]} 6... Be7
{[%clk 0:02:55.4]} 7. Re1 {[%clk 0:02:55.3]} 7... O-O {[%clk 0:02:53.4]} 8. e4
{[%clk 0:02:54.8]} 8... dxe4 {[%clk 0:02:53.1]} 9. Nxe4 {[%clk 0:02:55.7]} 9...
Nxe4 {[%clk 0:02:53.7]} 10. Rxe4 {[%clk 0:02:56.3]} 10... Nf6 {[%clk 0:02:53.3]}
11. Re1 {[%clk 0:02:56.1]} 11... c5 {[%clk 0:02:53]} 12. c3 {[%clk 0:02:52.6]}
12... Qb6 {[%clk 0:02:42.9]} 13. Qb3 {[%clk 0:02:33.6]} 13... Bxf3 {[%clk
0:02:09.7]} 14. Bxf3 {[%clk 0:02:22.1]} 14... cxd4 {[%clk 0:02:09.1]} 15. Qxb6
{[%clk 0:02:16.9]} 15... axb6 {[%clk 0:02:10]} 16. cxd4 {[%clk 0:02:17.2]} 16...
Rfd8 {[%clk 0:02:05.5]} 17. Bxb7 {[%clk 0:02:12.3]} 17... Ra7 {[%clk 0:02:02.1]}
18. Bf3 {[%clk 0:02:11.8]} 18... Rxd4 {[%clk 0:02:01.6]} 19. Be3 {[%clk
0:02:08.7]} 19... Rb4 {[%clk 0:01:49.2]} 20. b3 {[%clk 0:01:54.7]} 20... Bc5
{[%clk 0:01:48.9]} 21. Bxc5 {[%clk 0:01:49.4]} 21... bxc5 {[%clk 0:01:49.8]} 22.
Rec1 {[%clk 0:01:49.2]} 22... Ra5 {[%clk 0:01:49.7]} 23. Bd1 {[%clk 0:01:39.8]}
23... g6 {[%clk 0:01:44]} 24. a3 {[%clk 0:01:26.7]} 24... Rb7 {[%clk 0:01:43.2]}
25. Kg2 {[%clk 0:01:20.4]} 25... Kg7 {[%clk 0:01:42.8]} 26. Rc4 {[%clk
0:01:18.3]} 26... Nd7 {[%clk 0:01:37.1]} 27. Rc3 {[%clk 0:00:59]} 27... Nb6
{[%clk 0:01:29.3]} 28. Bf3 {[%clk 0:00:55.5]} 28... Rba7 {[%clk 0:01:14.9]} 29.
a4 {[%clk 0:00:52]} 29... c4 {[%clk 0:00:59.7]} 30. bxc4 {[%clk 0:00:48.8]}
30... Nxa4 {[%clk 0:00:58.3]} 31. Rca3 {[%clk 0:00:46.3]} 31... R5a6 {[%clk
0:00:58.3]} 32. Bb7 {[%clk 0:00:27.1]} 32... Rxb7 {[%clk 0:00:53.1]} 33. Rxa4
{[%clk 0:00:27.3]} 33... Rxa4 {[%clk 0:00:52.2]} 34. Rxa4 {[%clk 0:00:26.7]}
34... Rb2 {[%clk 0:00:52.7]} 35. Ra7 {[%clk 0:00:26.7]} 35... Rc2 {[%clk
0:00:52.4]} 36. Rc7 {[%clk 0:00:27.2]} 36... h5 {[%clk 0:00:49.6]} 37. h4 {[%clk
0:00:27.2]} 37... e5 {[%clk 0:00:46.9]} 38. c5 {[%clk 0:00:25.5]} 38... Kf6
{[%clk 0:00:44.2]} 39. c6 {[%clk 0:00:23.3]} 39... e4 {[%clk 0:00:44]} 40. Kf1
{[%clk 0:00:21.9]} 40... Ke6 {[%clk 0:00:42]} 41. Ke1 {[%clk 0:00:20.5]} 41...
f6 {[%clk 0:00:37.5]} 42. Rg7 {[%clk 0:00:19.6]} 42... Kf5 {[%clk 0:00:21.2]}
43. c7 {[%clk 0:00:18.4]} 43... g5 {[%clk 0:00:20.8]} 44. hxg5 {[%clk
0:00:18.1]} 44... fxg5 {[%clk 0:00:21.7]} 45. Kf1 {[%clk 0:00:18]} 45... Kg4
{[%clk 0:00:20.2]} 46. Re7 {[%clk 0:00:14]} 46... Kh3 {[%clk 0:00:13.2]} 47.
Rxe4 {[%clk 0:00:12.5]} 47... Rxc7 {[%clk 0:00:13.2]} 48. Ke2 {[%clk 0:00:11.7]}
48... Kg2 {[%clk 0:00:12.4]} 49. Re5 {[%clk 0:00:10.3]} 49... Rg7 {[%clk
0:00:11.5]} 50. Ke3 {[%clk 0:00:09.4]} 50... h4 {[%clk 0:00:11.7]} 51. gxh4
{[%clk 0:00:08.7]} 51... gxh4 {[%clk 0:00:12.6]} 52. Rh5 {[%clk 0:00:08.6]}
52... h3 {[%clk 0:00:12.5]} 53. f4 {[%clk 0:00:08.6]} 53... h2 {[%clk
0:00:12.8]} 54. f5 {[%clk 0:00:08.5]} 54... Rg3+ {[%clk 0:00:12.7]} 55. Kf4
{[%clk 0:00:08.1]} 55... Rh3 {[%clk 0:00:13]} 56. Rg5+ {[%clk 0:00:07.2]} 56...
Kf2 {[%clk 0:00:11.7]} 57. f6 {[%clk 0:00:06.2]} 57... h1=Q {[%clk 0:00:11.7]}
58. Rf5 {[%clk 0:00:06.5]} 58... Rf3+ {[%clk 0:00:10.9]} 59. Ke5 {[%clk
0:00:06.7]} 59... Rxf5+ {[%clk 0:00:11.8]} 60. Kxf5 {[%clk 0:00:07.6]} 60... Qh8
{[%clk 0:00:12.5]} 0-1

[Event "*** SCC Grand Prix: Titled Tuesday Blitz"]
[Site "Chess.com"]
[Date "2020.06.09"]
[Round "9"]
[White "Munkhzul_Turmunkh"]
[Black "DrBergerBerger"]
[Result "1-0"]
[WhiteElo "2602"]
[BlackElo "2446"]
[TimeControl "180+1"]
[EndTime "10:47:45 PDT"]
[Termination "Munkhzul_Turmunkh won on time"]

1. e4 {[%clk 0:03:00.9]} 1... e6 {[%clk 0:02:59.4]} 2. d4 {[%clk 0:02:59.7]}
2... d5 {[%clk 0:02:58.9]} 3. Nc3 {[%clk 0:02:59.1]} 3... Nf6 {[%clk 0:02:58.4]}
4. e5 {[%clk 0:02:59.4]} 4... Nfd7 {[%clk 0:02:57.7]} 5. f4 {[%clk 0:02:58.6]}
5... c5 {[%clk 0:02:57.3]} 6. Nf3 {[%clk 0:02:58]} 6... Nc6 {[%clk 0:02:56.8]}
7. Be3 {[%clk 0:02:57.3]} 7... Be7 {[%clk 0:02:56.5]} 8. Qd2 {[%clk 0:02:56.9]}
8... O-O {[%clk 0:02:55.5]} 9. dxc5 {[%clk 0:02:31.7]} 9... Qa5 {[%clk
0:02:50.3]} 10. O-O-O {[%clk 0:02:27.6]} 10... b6 {[%clk 0:02:49.1]} 11. Bb5
{[%clk 0:02:19.6]} 11... Nb4 {[%clk 0:02:47.8]} 12. c6 {[%clk 0:02:04.3]} 12...
Nxa2+ {[%clk 0:02:32.7]} 13. Nxa2 {[%clk 0:02:05.2]} 13... Qxa2 {[%clk
0:02:32.1]} 14. Qc3 {[%clk 0:01:59.9]} 14... Nc5 {[%clk 0:02:27.7]} 15. Qa3
{[%clk 0:01:58.5]} 15... Qxa3 {[%clk 0:02:13.8]} 16. bxa3 {[%clk 0:01:59.4]}
16... a6 {[%clk 0:01:54.8]} 17. Be2 {[%clk 0:01:53.6]} 17... Na4 {[%clk
0:01:54.3]} 18. Rd3 {[%clk 0:01:48.4]} 18... Ra7 {[%clk 0:01:45.9]} 19. Nd4
{[%clk 0:01:43.8]} 19... Rc7 {[%clk 0:01:44.6]} 20. g4 {[%clk 0:01:37.8]} 20...
Bc5 {[%clk 0:01:43.7]} 21. Rf1 {[%clk 0:01:30.5]} 21... Bxd4 {[%clk 0:01:39.3]}
22. Bxd4 {[%clk 0:01:31.4]} 22... Rxc6 {[%clk 0:01:38.5]} 23. Kd2 {[%clk
0:01:27.9]} 23... Bd7 {[%clk 0:01:31.3]} 24. Rb3 {[%clk 0:01:25.8]} 24... b5
{[%clk 0:01:30.3]} 25. Bd3 {[%clk 0:01:19.3]} 25... Rfc8 {[%clk 0:01:24.1]} 26.
h4 {[%clk 0:01:11.8]} 26... Nc5 {[%clk 0:01:17.5]} 27. Bxc5 {[%clk 0:01:10.2]}
27... Rxc5 {[%clk 0:01:18.4]} 28. f5 {[%clk 0:01:05.2]} 28... d4 {[%clk
0:01:13.4]} 29. Rb4 {[%clk 0:00:58.7]} 29... Rd5 {[%clk 0:00:47.4]} 30. Rf4
{[%clk 0:00:53.3]} 30... exf5 {[%clk 0:00:43.6]} 31. Rbxd4 {[%clk 0:00:47.2]}
31... Rcc5 {[%clk 0:00:43]} 32. gxf5 {[%clk 0:00:43.6]} 32... Bc6 {[%clk
0:00:37.4]} 33. e6 {[%clk 0:00:38.6]} 33... Kf8 {[%clk 0:00:34.2]} 34. c3 {[%clk
0:00:32.2]} 34... Be8 {[%clk 0:00:24.1]} 35. Rxd5 {[%clk 0:00:24.7]} 35... Rxd5
{[%clk 0:00:23.7]} 36. Ke3 {[%clk 0:00:25.6]} 36... Ke7 {[%clk 0:00:22.7]} 37.
exf7 {[%clk 0:00:15.5]} 37... Bxf7 {[%clk 0:00:23.4]} 38. f6+ {[%clk 0:00:10.1]}
38... gxf6 {[%clk 0:00:20.6]} 39. Bxh7 {[%clk 0:00:11]} 39... Rc5 {[%clk
0:00:18.8]} 40. Kd2 {[%clk 0:00:09.8]} 40... Rh5 {[%clk 0:00:16]} 41. Bd3 {[%clk
0:00:08.3]} 41... Ke6 {[%clk 0:00:15.6]} 42. Ke3 {[%clk 0:00:08]} 42... f5
{[%clk 0:00:13.2]} 43. c4 {[%clk 0:00:07.5]} 43... Ke5 {[%clk 0:00:11.3]} 44.
cxb5 {[%clk 0:00:06.5]} 44... axb5 {[%clk 0:00:11.7]} 45. Bxb5 {[%clk
0:00:06.6]} 45... Bd5 {[%clk 0:00:11.8]} 46. Bd3 {[%clk 0:00:05.9]} 46... Be6
{[%clk 0:00:11.5]} 47. Rb4 {[%clk 0:00:05.3]} 47... Rh8 {[%clk 0:00:09.1]} 48.
a4 {[%clk 0:00:05.1]} 48... Rf8 {[%clk 0:00:07.2]} 49. Rb5+ {[%clk 0:00:05.1]}
49... Kf6 {[%clk 0:00:05.5]} 50. Kf4 {[%clk 0:00:05]} 50... Rh8 {[%clk
0:00:04.8]} 51. Kg3 {[%clk 0:00:05.2]} 51... Rg8+ {[%clk 0:00:05.2]} 52. Kh2
{[%clk 0:00:04.2]} 52... f4 {[%clk 0:00:05.8]} 53. Be2 {[%clk 0:00:03.5]} 53...
Rh8 {[%clk 0:00:05.1]} 54. h5 {[%clk 0:00:02.8]} 54... Bf5 {[%clk 0:00:04.8]}
55. a5 {[%clk 0:00:02.7]} 55... Ke6 {[%clk 0:00:01.3]} 56. Bf3 {[%clk
0:00:02.8]} 56... Kf6 {[%clk 0:00:01.4]} 57. a6 {[%clk 0:00:03.1]} 57... Rh7
{[%clk 0:00:01.9]} 58. Rb6+ {[%clk 0:00:03.3]} 58... Kg5 {[%clk 0:00:02]} 59.
Rb7 {[%clk 0:00:03.3]} 59... Rh8 {[%clk 0:00:01.5]} 60. a7 {[%clk 0:00:03.5]}
60... Bg4 {[%clk 0:00:02.4]} 61. Rb8 {[%clk 0:00:03.1]} 61... Bxf3 {[%clk
0:00:02.5]} 62. Rxh8 {[%clk 0:00:02.8]} 1-0

[Event "*** SCC Grand Prix: Titled Tuesday Blitz"]
[Site "Chess.com"]
[Date "2020.06.09"]
[Round "9"]
[White "letsgoband"]
[Black "ZAbdumalik"]
[Result "1/2-1/2"]
[WhiteElo "2464"]
[BlackElo "2727"]
[TimeControl "180+1"]
[EndTime "10:47:48 PDT"]
[Termination "Game drawn - insufficient material"]

1. e4 {[%clk 0:03:00.9]} 1... e5 {[%clk 0:02:58]} 2. Nf3 {[%clk 0:03:01.1]} 2...
Nc6 {[%clk 0:02:58]} 3. Bb5 {[%clk 0:02:56.4]} 3... a6 {[%clk 0:02:58]} 4. Ba4
{[%clk 0:02:56.6]} 4... Nf6 {[%clk 0:02:57.9]} 5. O-O {[%clk 0:02:56.2]} 5...
Be7 {[%clk 0:02:57.8]} 6. Re1 {[%clk 0:02:52.9]} 6... b5 {[%clk 0:02:57.5]} 7.
Bb3 {[%clk 0:02:52.7]} 7... O-O {[%clk 0:02:57.9]} 8. h3 {[%clk 0:02:52.1]} 8...
Bb7 {[%clk 0:02:55.6]} 9. Nc3 {[%clk 0:02:50.8]} 9... d6 {[%clk 0:02:50.8]} 10.
a3 {[%clk 0:02:36.1]} 10... Na5 {[%clk 0:02:22.3]} 11. Ba2 {[%clk 0:02:34.5]}
11... c5 {[%clk 0:02:21.8]} 12. d3 {[%clk 0:02:28]} 12... Nc6 {[%clk 0:02:16.4]}
13. Nd5 {[%clk 0:02:26.9]} 13... Nxd5 {[%clk 0:02:15.3]} 14. Bxd5 {[%clk
0:02:27.8]} 14... Qd7 {[%clk 0:02:14.5]} 15. c3 {[%clk 0:02:25.7]} 15... Bf6
{[%clk 0:02:07.8]} 16. Bg5 {[%clk 0:02:17.7]} 16... Bxg5 {[%clk 0:02:06]} 17.
Nxg5 {[%clk 0:02:18.6]} 17... h6 {[%clk 0:02:06.3]} 18. Nf3 {[%clk 0:02:17.9]}
18... Ne7 {[%clk 0:02:01.4]} 19. Bxb7 {[%clk 0:02:15.2]} 19... Qxb7 {[%clk
0:02:01.6]} 20. d4 {[%clk 0:02:16.1]} 20... cxd4 {[%clk 0:01:52]} 21. cxd4
{[%clk 0:02:15.1]} 21... Ng6 {[%clk 0:01:46.8]} 22. Qb3 {[%clk 0:01:37.5]} 22...
Rac8 {[%clk 0:01:37.1]} 23. Rad1 {[%clk 0:01:34.7]} 23... Rc4 {[%clk 0:01:28.2]}
24. dxe5 {[%clk 0:01:24.3]} 24... Nxe5 {[%clk 0:01:10]} 25. Nxe5 {[%clk
0:01:19.9]} 25... dxe5 {[%clk 0:01:09.8]} 26. Rd5 {[%clk 0:01:20.5]} 26... Qc7
{[%clk 0:01:06.1]} 27. Qd3 {[%clk 0:01:07.7]} 27... Rc1 {[%clk 0:01:02.8]} 28.
Rd1 {[%clk 0:00:59.5]} 28... Rxd1+ {[%clk 0:01:00.5]} 29. Qxd1 {[%clk
0:01:00.4]} 29... Rc8 {[%clk 0:00:57]} 30. g3 {[%clk 0:00:23.2]} 30... Qc2
{[%clk 0:00:51.8]} 31. Qxc2 {[%clk 0:00:10.9]} 31... Rxc2 {[%clk 0:00:51.4]} 32.
Rxe5 {[%clk 0:00:11.4]} 32... Rxb2 {[%clk 0:00:51.5]} 33. Re8+ {[%clk 0:00:12]}
33... Kh7 {[%clk 0:00:51.7]} 34. Ra8 {[%clk 0:00:12.6]} 34... Ra2 {[%clk
0:00:30.3]} 35. Rxa6 {[%clk 0:00:11.8]} 35... b4 {[%clk 0:00:30.5]} 36. Kg2
{[%clk 0:00:10.9]} 36... Rxa3 {[%clk 0:00:20]} 37. Rb6 {[%clk 0:00:10.9]} 37...
Rb3 {[%clk 0:00:20.3]} 38. h4 {[%clk 0:00:11.4]} 38... h5 {[%clk 0:00:20.1]} 39.
Rb5 {[%clk 0:00:10.9]} 39... g6 {[%clk 0:00:20]} 40. Rb7 {[%clk 0:00:11.1]}
40... Kg7 {[%clk 0:00:20.2]} 41. e5 {[%clk 0:00:11.5]} 41... Kf8 {[%clk
0:00:20.2]} 42. Kf1 {[%clk 0:00:10]} 42... Rb2 {[%clk 0:00:19.6]} 43. Kg2 {[%clk
0:00:09.9]} 43... b3 {[%clk 0:00:19.8]} 44. Kf3 {[%clk 0:00:10.2]} 44... Rb1
{[%clk 0:00:19.6]} 45. Kf4 {[%clk 0:00:10.5]} 45... b2 {[%clk 0:00:16.1]} 46. f3
{[%clk 0:00:10.8]} 46... Kg8 {[%clk 0:00:15.1]} 47. Kg5 {[%clk 0:00:09.3]} 47...
Rg1 {[%clk 0:00:14.8]} 48. Rxb2 {[%clk 0:00:08.5]} 48... Rxg3+ {[%clk
0:00:15.1]} 49. Kf4 {[%clk 0:00:09.1]} 49... Rh3 {[%clk 0:00:15.5]} 50. e6
{[%clk 0:00:07.4]} 50... fxe6 {[%clk 0:00:14.8]} 51. Kg5 {[%clk 0:00:07.9]}
51... Rg3+ {[%clk 0:00:13.6]} 52. Kh6 {[%clk 0:00:07]} 52... Kf7 {[%clk
0:00:13.6]} 53. Rb7+ {[%clk 0:00:07]} 53... Kf6 {[%clk 0:00:13.9]} 54. f4 {[%clk
0:00:06.2]} 54... Rg4 {[%clk 0:00:13.8]} 55. Rg7 {[%clk 0:00:04.9]} 55... Kf5
{[%clk 0:00:12.6]} 56. Rf7+ {[%clk 0:00:04.5]} 56... Ke4 {[%clk 0:00:13]} 57.
Rf6 {[%clk 0:00:05]} 57... Rxf4 {[%clk 0:00:13.2]} 58. Rxe6+ {[%clk 0:00:05.1]}
58... Kf5 {[%clk 0:00:13.3]} 59. Rxg6 {[%clk 0:00:05.2]} 59... Rxh4 {[%clk
0:00:13.8]} 60. Rg5+ {[%clk 0:00:05.8]} 60... Kf6 {[%clk 0:00:13.4]} 61. Rxh5
{[%clk 0:00:06.7]} 61... Rg4 {[%clk 0:00:13.4]} 62. Rh1 {[%clk 0:00:05.8]} 62...
Rg6+ {[%clk 0:00:13.5]} 63. Kh5 {[%clk 0:00:05.8]} 63... Rg8 {[%clk 0:00:13.7]}
64. Rf1+ {[%clk 0:00:06.3]} 64... Kg7 {[%clk 0:00:14.1]} 65. Kg5 {[%clk
0:00:06.6]} 65... Kh7+ {[%clk 0:00:13.7]} 66. Kh5 {[%clk 0:00:06.7]} 66... Kg7
{[%clk 0:00:13.4]} 67. Rg1+ {[%clk 0:00:06.5]} 67... Kf7 {[%clk 0:00:13.8]} 68.
Rxg8 {[%clk 0:00:07.4]} 68... Kxg8 {[%clk 0:00:14.7]} 1/2-1/2